bitfinex-derivatives/quotes_BTCF0:USTF0_20250729
["timestamp","ask_amount","ask_price","bid_price","bid_amount"]
[1753815216730,0.5525,117750.0,117740.0,1.0377159]
[1753815216929,0.79498226,117750.0,117740.0,1.0377159]
[1753815219233,0.5525,117750.0,117740.0,1.0377159]
[1753815219933,0.5525,117750.0,117740.0,0.3812659]
[1753815220135,1.00087366,117750.0,117740.0,1.0276959]
[1753815222428,1.00087366,117750.0,117740.0,0.9782759]
[1753815222633,1.00087366,117750.0,117740.0,0.8512959]
[1753815223936,1.00087366,117750.0,117740.0,0.9451059]
[1753815224138,1.00087366,117750.0,117740.0,0.9939959]
[1753815224630,1.00087366,117750.0,117740.0,0.3165959]
[1753815225738,1.67831366,117750.0,117740.0,0.3165959]
[1753815229645,1.31202226,117750.0,117740.0,0.3676859]
[1753815229940,1.43794226,117750.0,117740.0,0.3798859]
[1753815230844,1.60782376,117750.0,117740.0,0.3798859]
[1753815231243,0.58568,117750.0,117740.0,0.3798859]
[1753815234346,0.82816226,117750.0,117740.0,0.3798859]
[1753815234740,0.58568,117750.0,117740.0,0.3798859]
[1753815235343,0.58568,117750.0,117740.0,0.38836646]
[1753815235844,0.82816226,117750.0,117740.0,0.3798859]
[1753815236745,0.58568,117750.0,117740.0,0.3798859]
[1753815237841,0.82816226,117750.0,117740.0,0.3798859]
[1753815238539,0.3921,117750.0,117740.0,0.3798859]
[1753815238840,0.44269,117750.0,117740.0,0.38843886]
[1753815239045,0.47306,117750.0,117740.0,0.38843886]
[1753815239342,0.54839,117750.0,117740.0,0.38843886]
[1753815241449,0.58568,117750.0,117740.0,0.38843886]
[1753815241749,0.82816226,117750.0,117740.0,0.38843886]
[1753815242346,0.58568,117750.0,117740.0,0.38843886]
[1753815242548,0.58568,117750.0,117740.0,0.3798859]
[1753815243943,0.82816226,117750.0,117740.0,0.3798859]
[1753815245953,0.82816226,117750.0,117740.0,0.38855696]
[1753815250956,0.82816226,117750.0,117740.0,0.3798859]
[1753815252956,0.99804376,117750.0,117740.0,0.8512559]
[1753815253255,0.99804376,117750.0,117740.0,0.1738959]
[1753815259046,0.1999759,117740.0,117730.0,0.0849495]
[1753815259256,0.55952816,117740.0,117730.0,0.2548477]
[1753815259455,0.2331403,117730.0,117720.0,0.32565427]
[1753815259657,0.55954256,117730.0,117720.0,0.32565427]
[1753815259954,1.23690256,117730.0,117720.0,0.2160138]
[1753815260258,0.3134546,117720.0,117710.0,0.5307391]
[1753815260457,0.79841912,117720.0,117710.0,0.3608]
[1753815260657,0.79841912,117720.0,117710.0,0.4961891]
[1753815261351,0.79841912,117720.0,117710.0,0.4991891]
[1753815262057,0.79841912,117720.0,117710.0,0.4961891]
[1753815262254,0.79841912,117720.0,117710.0,0.4981891]
[1753815262756,0.55593686,117720.0,117710.0,0.4981891]
[1753815263658,0.55593686,117720.0,117710.0,0.5441591]
[1753815264156,0.79841912,117720.0,117710.0,0.5441591]
[1753815264458,0.79841912,117720.0,117710.0,0.5451591]
[1753815264660,1.47589912,117720.0,117710.0,0.5451591]
[1753815267755,0.79841912,117720.0,117710.0,0.5451591]
[1753815267954,1.19902686,117720.0,117710.0,0.7037691]
[1753815269662,0.52138686,117720.0,117710.0,0.7037691]
[1753815269860,1.19894686,117720.0,117710.0,0.7523991]
[1753815271265,0.52138686,117720.0,117710.0,0.7523991]
[1753815271456,1.19902686,117720.0,117710.0,0.7523991]
[1753815274156,0.35146226,117720.0,117710.0,0.7523991]
[1753815274360,0.10898,117720.0,117710.0,0.7523991]
[1753815275266,0.35253226,117720.0,117710.0,0.7523991]
[1753815277467,0.52245686,117720.0,117710.0,0.7523991]
[1753815277668,0.35253226,117720.0,117710.0,0.7523991]
[1753815279875,0.35424226,117720.0,117710.0,0.7523991]
[1753815280174,0.52416686,117720.0,117710.0,0.7523991]
[1753815280666,0.35424226,117720.0,117710.0,0.7523991]
[1753815282667,0.31831226,117720.0,117710.0,0.7523991]
[1753815283468,0.31938226,117720.0,117710.0,0.7523991]
[1753815286276,0.49014686,117720.0,117710.0,0.7523991]
[1753815287573,0.32022226,117720.0,117710.0,0.7523991]
[1753815287780,0.49014686,117720.0,117710.0,0.7523991]
[1753815289178,0.32022226,117720.0,117710.0,0.7523991]
[1753815291281,0.49014686,117720.0,117710.0,0.7523991]
[1753815291680,0.32022226,117720.0,117710.0,0.7523991]
[1753815292483,0.49014686,117720.0,117710.0,0.7523991]
[1753815292889,0.32022226,117720.0,117710.0,0.7523991]
[1753815293187,0.49014686,117720.0,117710.0,0.7523991]
[1753815293878,0.32022226,117720.0,117710.0,0.7523991]
[1753815294385,0.49014686,117720.0,117710.0,0.7523991]
[1753815294786,0.32022226,117720.0,117710.0,0.7523991]
[1753815294988,0.31938226,117720.0,117710.0,0.7523991]
[1753815295689,0.31831226,117720.0,117710.0,0.7523991]
[1753815296882,0.31884226,117720.0,117710.0,0.7523991]
[1753815301089,0.67756,117730.0,117720.0,0.1699246]
[1753815301292,0.44573248,117740.0,117730.0,0.4204702]
[1753815301498,1.14542903,117740.0,117730.0,0.4204702]
[1753815301795,0.27296325,117740.0,117730.0,0.4204702]
[1753815301987,0.95052325,117740.0,117730.0,0.4204702]
[1753815302490,0.51544551,117740.0,117730.0,0.4204702]
[1753815303697,1.19296551,117740.0,117730.0,0.4204702]
[1753815303891,1.19496551,117740.0,117730.0,0.4204702]
[1753815304193,1.17282896,117740.0,117730.0,0.4204702]
[1753815304386,0.49530896,117740.0,117730.0,0.4204702]
[1753815304587,1.17282896,117740.0,117730.0,0.4204702]
[1753815304788,1.17382896,117740.0,117730.0,0.4204702]
[1753815305395,1.19595067,117740.0,117730.0,0.4204702]
[1753815307501,0.51843067,117740.0,117730.0,0.4204702]
[1753815307701,1.19595067,117740.0,117730.0,0.4204702]
[1753815308103,0.51843067,117740.0,117730.0,0.4204702]
[1753815308297,1.19591067,117740.0,117730.0,0.4204702]
[1753815309802,0.51843067,117740.0,117730.0,0.4204702]
[1753815310000,1.19591067,117740.0,117730.0,0.2164702]
[1753815310302,1.19591067,117740.0,117730.0,0.1699102]
[1753815310600,0.2508302,117730.0,117720.0,0.3014301]
[1753815310908,0.75791167,117730.0,117720.0,0.2164846]
[1753815311801,0.51542941,117730.0,117720.0,0.2164846]
[1753815312003,0.2036946,117720.0,117710.0,0.6701881]
[1753815312200,1.41328912,117720.0,117710.0,0.6701881]
[1753815312702,1.43540773,117720.0,117710.0,0.7571681]
[1753815313005,1.43540773,117720.0,117710.0,0.7946581]
[1753815313503,0.95044321,117720.0,117710.0,0.8276181]
[1753815313704,1.43540773,117720.0,117710.0,0.8276181]
[1753815313904,1.43540773,117720.0,117710.0,0.8737081]
[1753815315304,1.41328912,117720.0,117710.0,0.8737081]
[1753815315699,1.17080686,117720.0,117710.0,0.8737081]
[1753815317101,1.41328912,117720.0,117710.0,0.7436493]
[1753815319304,1.41328912,117720.0,117710.0,0.5872193]
[1753815320900,1.41328912,117720.0,117710.0,0.32825]
[1753815321404,1.41328912,117720.0,117710.0,0.37628]
[1753815322207,1.41328912,117720.0,117710.0,0.5462191]
[1753815323416,1.41328912,117720.0,117710.0,0.37628]
[1753815330914,1.43534986,117720.0,117710.0,0.37628]
[1753815339721,1.43534986,117720.0,117710.0,0.37528]
[1753815339918,1.43534986,117720.0,117710.0,0.37428]
[1753815341427,0.2340391,117710.0,117700.0,0.3608]
[1753815341619,0.2814879,117690.0,117680.0,0.4952422]
[1753815341824,1.24781016,117690.0,117680.0,0.4952422]
[1753815342730,1.20149016,117690.0,117680.0,0.4982422]
[1753815342930,1.20149016,117690.0,117680.0,0.5012422]
[1753815343134,1.20693016,117690.0,117680.0,0.5012422]
[1753815343327,1.20693016,117690.0,117680.0,0.4587473]
[1753815343527,1.20693016,117690.0,117680.0,0.5067773]
[1753815344031,1.25496016,117690.0,117680.0,0.5067773]
[1753815344723,1.26332843,117690.0,117680.0,0.5067773]
[1753815350236,1.02084617,117690.0,117680.0,0.5067773]
[1753815350435,1.26332843,117690.0,117680.0,0.5067773]
[1753815358740,1.56735685,117690.0,117680.0,0.5067773]
[1753815359139,1.12066314,117690.0,117680.0,0.78003264]
[1753815359340,1.16796314,117690.0,117680.0,0.78003264]
[1753815359541,1.17340314,117690.0,117680.0,0.78003264]
[1753815359741,0.52750314,117690.0,117680.0,0.78003264]
[1753815359942,1.20494314,117690.0,117680.0,0.78003264]
[1753815360242,0.30581762,117700.0,117690.0,0.1699679]
[1753815360439,1.38044296,117700.0,117690.0,0.70503324]
[1753815360640,1.38044296,117700.0,117690.0,0.4317779]
[1753815361348,1.42847296,117700.0,117690.0,0.4317779]
[1753815361648,1.42847296,117700.0,117690.0,0.4337779]
[1753815363049,1.39803711,117700.0,117690.0,0.4337779]
[1753815363549,0.72059711,117700.0,117690.0,0.4337779]
[1753815363849,1.39803711,117700.0,117690.0,0.4357779]
[1753815364249,1.35554561,117700.0,117690.0,0.4357779]
[1753815366047,0.67810561,117700.0,117690.0,0.4357779]
[1753815366346,1.35550561,117700.0,117690.0,0.4357779]
[1753815366751,0.67810561,117700.0,117690.0,0.4357779]
[1753815367053,1.35550561,117700.0,117690.0,0.4357779]
[1753815367552,0.67810561,117700.0,117690.0,0.4357779]
[1753815367849,1.35550561,117700.0,117690.0,0.4357779]
[1753815369449,1.35550561,117700.0,117690.0,0.004]
[1753815370151,1.35550561,117700.0,117680.0,0.0001]
[1753815370152,0.3419283,117690.0,117680.0,0.0001]
[1753815370347,0.82756728,117690.0,117680.0,0.0001]
[1753815370848,0.58474779,117690.0,117680.0,0.0001]
[1753815371450,0.58474779,117690.0,117680.0,0.0011]
[1753815371956,0.58474779,117690.0,117680.0,0.0021]
[1753815374156,0.65214383,117690.0,117680.0,0.0021]
[1753815374853,0.67424268,117690.0,117680.0,0.0021]
[1753815377253,0.43142319,117690.0,117680.0,0.0021]
[1753815377450,0.67424268,117690.0,117680.0,0.0021]
[1753815379754,0.65214383,117690.0,117680.0,0.0021]
[1753815380353,0.65214383,117690.0,117680.0,0.1720826]
[1753815380554,0.65214383,117690.0,117680.0,0.0021]
[1753815389057,0.89496332,117690.0,117680.0,0.0021]
[1753815389263,0.91714294,117690.0,117680.0,1e-08]
[1753815389662,2.41714294,117690.0,117680.0,1e-08]
[1753815390460,0.1699973,117670.0,117660.0,0.2772418]
[1753815390765,0.2879218,117660.0,117650.0,0.5111805]
[1753815390964,0.58021129,117660.0,117650.0,0.5585405]
[1753815392860,0.58021129,117660.0,117650.0,0.5615405]
[1753815393057,0.58021129,117660.0,117650.0,0.5645405]
[1753815393861,0.58021129,117660.0,117650.0,0.26701]
[1753815394062,0.58021129,117660.0,117650.0,0.006]
[1753815395162,0.3374207,117640.0,117630.0,0.4242946]
[1753815395364,1.25764019,117640.0,117630.0,0.4735646]
[1753815395957,1.25764019,117640.0,117620.0,0.0850336]
[1753815395958,0.2842896,117620.0,117610.0,0.3837341]
[1753815396157,0.2842896,117620.0,117600.0,0.3171272]
[1753815396158,0.2382239,117610.0,117600.0,0.3171272]
[1753815396364,0.58028339,117610.0,117600.0,0.4262672]
[1753815396667,0.58028339,117610.0,117600.0,0.26101]
[1753815397461,0.58028339,117610.0,117600.0,0.26201]
[1753815397959,0.58028339,117610.0,117600.0,0.4321084]
[1753815398968,0.58028339,117610.0,117600.0,0.26101]
[1753815399268,0.58828339,117610.0,117600.0,0.26101]
[1753815399656,0.83110288,117610.0,117600.0,0.21174]
[1753815399860,0.83110288,117610.0,117600.0,0.4311085]
[1753815400062,0.58828339,117610.0,117600.0,0.4311085]
[1753815404268,0.83110288,117610.0,117600.0,0.4311085]
[1753815404468,0.58828339,117610.0,117600.0,0.4311085]
[1753815404672,1.26584339,117610.0,117600.0,0.4311085]
[1753815405380,1.26584339,117610.0,117600.0,0.4311087]
[1753815405871,1.26584339,117610.0,117600.0,0.21174]
[1753815406576,1.50866288,117610.0,117600.0,0.4310083]
[1753815407674,1.50874288,117610.0,117600.0,0.4310083]
[1753815407868,1.26592339,117610.0,117600.0,0.4310083]
[1753815409370,0.008,117610.0,117600.0,0.4310083]
[1753815409579,0.68564,117610.0,117600.0,0.4310083]
[1753815409878,0.92845949,117610.0,117600.0,0.4310083]
[1753815410175,1.14714379,117610.0,117600.0,0.4310083]
[1753815410365,1.19406379,117610.0,117600.0,0.4310083]
[1753815410570,0.58204379,117610.0,117600.0,0.4310083]
[1753815410770,1.25972379,117610.0,117600.0,0.4310083]
[1753815410966,1.50254328,117610.0,117600.0,0.2174585]
[1753815411171,0.82486328,117610.0,117600.0,0.2174585]
[1753815411378,1.50254328,117610.0,117600.0,0.2174585]
[1753815411681,1.25972379,117610.0,117600.0,0.4249785]
[1753815412076,1.50254328,117610.0,117600.0,0.4249785]
[1753815412880,1.25972379,117610.0,117600.0,0.4249785]
[1753815418287,1.28179536,117610.0,117600.0,0.4249785]
[1753815418581,1.25972379,117610.0,117600.0,0.4249785]
[1753815419483,1.28180705,117610.0,117600.0,0.4249785]
[1753815420283,0.60412705,117610.0,117600.0,0.4249785]
[1753815420583,1.28180705,117610.0,117600.0,0.4249785]
[1753815424490,0.60412705,117610.0,117600.0,0.4249785]
[1753815424794,1.28180705,117610.0,117600.0,0.4249785]
[1753815427792,1.03898756,117610.0,117600.0,0.4249785]
[1753815427993,1.28180705,117610.0,117600.0,0.4249785]
[1753815434989,0.55720705,117610.0,117600.0,0.4249785]
[1753815435201,0.87784756,117610.0,117600.0,0.4249785]
[1753815435494,1.12066705,117610.0,117600.0,0.4249785]
[1753815435692,1.16982705,117610.0,117600.0,0.4249785]
[1753815436495,1.23294705,117610.0,117600.0,0.4249785]
[1753815440199,1.28033705,117610.0,117600.0,0.4249785]
[1753815442898,1.23294705,117610.0,117600.0,0.4249785]
[1753815443291,1.23290705,117610.0,117600.0,0.4249785]
[1753815444690,1.28029705,117610.0,117600.0,0.4249785]
[1753815445695,0.60265705,117610.0,117600.0,0.4249785]
[1753815445897,1.28029705,117610.0,117600.0,0.4249785]
[1753815450103,1.03747756,117610.0,117600.0,0.4249785]
[1753815450296,1.04069949,117610.0,117600.0,0.4249785]
[1753815450497,0.008,117610.0,117600.0,0.4249785]
[1753815450699,0.6856,117610.0,117600.0,0.66779799]
[1753815451095,0.6856,117610.0,117600.0,0.4249785]
[1753815451294,0.008,117610.0,117600.0,0.4249785]
[1753815451598,0.005,117610.0,117600.0,0.4249785]
[1753815452599,0.03654,117610.0,117600.0,0.4249785]
[1753815454004,0.03454,117610.0,117600.0,0.4249785]
[1753815454215,0.03554,117610.0,117600.0,0.4249785]
[1753815456395,0.004,117610.0,117600.0,0.4249785]
[1753815457302,0.03554,117610.0,117600.0,0.4249785]
[1753815457604,0.35909949,117610.0,117600.0,0.4249785]
[1753815458304,0.11628,117610.0,117600.0,0.4249785]
[1753815460507,0.35909949,117610.0,117600.0,0.4249785]
[1753815464909,0.11628,117610.0,117600.0,0.4249785]
[1753815465109,0.35909949,117610.0,117600.0,0.4249785]
[1753815468707,0.23516154,117630.0,117610.0,0.1700844]
[1753815468906,0.00836649,117640.0,117630.0,0.1700555]
[1753815469106,0.67119941,117650.0,117640.0,0.374381]
[1753815469410,1.37031154,117650.0,117640.0,0.422981]
[1753815469610,1.37031154,117650.0,117640.0,0.374381]
[1753815471212,1.38082702,117650.0,117640.0,0.374381]
[1753815471913,1.38482702,117650.0,117640.0,0.374381]
[1753815474114,1.38482702,117650.0,117640.0,0.341931]
[1753815474310,0.3246911,117640.0,117630.0,0.2975787]
[1753815474507,0.81033008,117640.0,117630.0,0.2975787]
[1753815474715,0.81033008,117640.0,117630.0,0.3456187]
[1753815475216,0.56751059,117640.0,117630.0,0.3456187]
[1753815475417,0.59213855,117640.0,117630.0,0.3456187]
[1753815475818,0.57051059,117640.0,117630.0,0.3456187]
[1753815476723,0.57151059,117640.0,117630.0,0.4008987]
[1753815477417,0.57151059,117640.0,117630.0,0.2605946]
[1753815477614,0.81433008,117640.0,117630.0,0.1700555]
[1753815477814,0.3247055,117630.0,117620.0,0.2180974]
[1753815478115,1.24488499,117630.0,117620.0,0.2180974]
[1753815478911,1.24488499,117630.0,117620.0,0.3108774]
[1753815479112,1.24488499,117630.0,117620.0,0.3419474]
[1753815479113,1.24688499,117630.0,117620.0,0.3419474]
[1753815480316,1.24688499,117630.0,117620.0,0.17007]
[1753815480520,1.0040655,117630.0,117620.0,0.21811]
[1753815480816,1.24688499,117630.0,117620.0,0.42301]
[1753815487217,0.52361519,117630.0,117620.0,0.42301]
[1753815487414,0.9583557,117630.0,117620.0,0.42301]
[1753815487812,0.033,117630.0,117620.0,0.66582949]
[1753815488015,0.002,117630.0,117620.0,0.66582949]
[1753815488718,0.002,117630.0,117620.0,0.42301]
[1753815495925,0.002,117630.0,117620.0,0.66582949]
[1753815496425,0.002,117630.0,117620.0,0.42301]
[1753815498528,0.002,117630.0,117620.0,1.10033]
[1753815499929,0.002,117630.0,117620.0,1.34314949]
[1753815500431,0.002,117630.0,117620.0,1.10033]
[1753815501331,0.002,117630.0,117620.0,1.34314949]
[1753815504731,0.346078,117670.0,117660.0,0.1700126]
[1753815505031,0.56677882,117670.0,117660.0,0.4132126]
[1753815505426,0.1700124,117660.0,117650.0,0.3332367]
[1753815505634,0.56222189,117660.0,117650.0,0.4965267]
[1753815505833,0.56222189,117660.0,117650.0,0.5407267]
[1753815506129,0.56222189,117660.0,117650.0,0.60804846]
[1753815507824,0.56522189,117660.0,117650.0,0.60804846]
[1753815511832,0.57022189,117660.0,117650.0,0.60804846]
[1753815515030,0.57022189,117660.0,117650.0,0.4965267]
[1753815515235,0.57022189,117660.0,117650.0,0.4540211]
[1753815515836,0.57022189,117660.0,117650.0,0.4982211]
[1753815517038,1.24742189,117660.0,117650.0,0.4982211]
[1753815520637,1.20315189,117660.0,117650.0,0.4982211]
[1753815521242,0.11312,117660.0,117650.0,0.4982211]
[1753815521430,0.2072637,117660.0,117650.0,0.4982211]
[1753815521632,0.03725,117660.0,117650.0,0.4982211]
[1753815521932,0.08405,117660.0,117650.0,0.4982211]
[1753815522638,0.32686949,117660.0,117650.0,0.4982211]
[1753815523841,0.08405,117660.0,117650.0,0.4982211]
[1753815525744,0.008,117660.0,117650.0,0.4982211]
[1753815526242,0.03758,117660.0,117650.0,0.4982211]
[1753815526634,0.08386,117660.0,117650.0,0.4982211]
[1753815527732,0.008,117660.0,117650.0,0.74104059]
[1753815528445,0.008,117660.0,117650.0,1.1753811]
[1753815532745,0.298394,117660.0,117650.0,1.4657751]
[1753815532941,0.008,117660.0,117650.0,1.4657751]
[1753815533144,0.298394,117660.0,117650.0,1.4657751]
[1753815538150,0.008,117660.0,117650.0,1.4657751]
[1753815538352,0.298394,117660.0,117650.0,1.4657751]
[1753815540255,0.008,117660.0,117650.0,1.4657751]
[1753815540952,0.298394,117660.0,117650.0,1.4657751]
[1753815541955,0.008,117660.0,117650.0,1.4657751]
[1753815542157,0.298394,117660.0,117650.0,1.4657751]
[1753815543142,0.008,117660.0,117650.0,1.4657751]
[1753815543346,0.298394,117660.0,117650.0,1.4657751]
[1753815546649,0.298394,117660.0,117650.0,0.7886151]
[1753815546847,0.374254,117660.0,117650.0,1.4656551]
[1753815550348,0.327974,117660.0,117650.0,1.4656551]
[1753815550547,0.325974,117660.0,117650.0,1.4656551]
[1753815551455,0.322974,117660.0,117650.0,1.4656551]
[1753815552354,0.03258,117660.0,117650.0,1.4656551]
[1753815552555,0.322974,117660.0,117650.0,1.4656551]
[1753815555256,0.293394,117660.0,117650.0,1.4656551]
[1753815557259,0.003,117660.0,117650.0,1.4656551]
[1753815559060,0.003,117660.0,117650.0,1.4668198]
[1753815559458,0.0429,117700.0,117650.0,1.5872006]
[1753815559655,0.0789526,117700.0,117690.0,0.6938249]
[1753815560157,0.5822032,117700.0,117690.0,0.6949896]
[1753815560358,0.4122466,117700.0,117690.0,0.6949896]
[1753815561048,0.4192466,117700.0,117690.0,0.6949896]
[1753815561452,0.42758891,117700.0,117690.0,0.6949896]
[1753815561649,0.59754551,117700.0,117690.0,0.4045956]
[1753815562058,0.47359891,117700.0,117690.0,0.4045956]
[1753815562560,0.64355551,117700.0,117690.0,0.4045956]
[1753815562861,0.61115429,117700.0,117690.0,0.4045956]
[1753815563160,0.44119769,117700.0,117690.0,0.4045956]
[1753815563360,0.61115449,117700.0,117690.0,0.4045956]
[1753815564263,0.18320491,117700.0,117690.0,0.4045956]
[1753815564458,0.1338526,117700.0,117690.0,0.4045956]
[1753815564855,0.1338526,117700.0,117690.0,0.66258838]
[1753815565163,0.11231,117700.0,117690.0,0.66258838]
[1753815565460,0.11231,117700.0,117690.0,0.4045956]
[1753815570668,0.11231,117700.0,117690.0,1.0814356]
[1753815573066,0.37030278,117700.0,117690.0,1.0814356]
[1753815574768,0.11231,117700.0,117690.0,1.0814356]
[1753815576666,0.13089615,117700.0,117690.0,1.0814356]
[1753815578974,0.38888893,117700.0,117690.0,1.0814356]
[1753815579673,0.38888893,117700.0,117690.0,0.4045956]
[1753815579870,0.38888893,117700.0,117690.0,0.3064256]
[1753815579871,0.59985663,117700.0,117690.0,0.3064256]
[1753815580277,0.59985663,117700.0,117690.0,0.3603256]
[1753815580877,0.59985663,117700.0,117690.0,0.2774256]
[1753815581573,0.59985663,117700.0,117690.0,0.3313256]
[1753815581778,0.59985663,117700.0,117690.0,0.3603256]
[1753815581983,0.59985663,117700.0,117690.0,0.4045956]
[1753815585181,0.38888893,117700.0,117690.0,0.4045956]
[1753815585387,0.41256958,117700.0,117690.0,0.4045956]
[1753815586490,0.45201958,117700.0,117690.0,0.4045956]
[1753815586986,0.62197728,117700.0,117690.0,0.4045956]
[1753815588887,1.29869728,117700.0,117690.0,0.4045956]
[1753815590183,1.29869728,117700.0,117690.0,0.1711356]
[1753815590389,1.28011113,117700.0,117690.0,0.2625456]
[1753815590589,1.28011113,117700.0,117690.0,0.3239056]
[1753815590785,1.28011113,117700.0,117690.0,0.3526256]
[1753815590990,1.28011113,117700.0,117690.0,0.3946356]
[1753815594689,1.11015343,117700.0,117690.0,0.3946356]
[1753815595190,0.85212065,117700.0,117690.0,0.3946356]
[1753815595389,1.28007163,117700.0,117690.0,0.3946356]
[1753815595589,1.25865098,117700.0,117690.0,0.3946356]
[1753815595790,1.08869278,117700.0,117690.0,0.3946356]
[1753815596089,1.25865098,117700.0,117690.0,0.3946356]
[1753815597491,0.58197098,117700.0,117690.0,0.3946356]
[1753815597690,1.08869278,117700.0,117690.0,0.3946356]
[1753815599088,0.41201278,117700.0,117690.0,0.3946356]
[1753815599286,0.04092,117700.0,117690.0,0.3946356]
[1753815599487,0.04092,117700.0,117690.0,0.65262838]
[1753815599687,0.012,117700.0,117690.0,0.65262838]
[1753815600187,0.012,117700.0,117690.0,0.3946356]
[1753815600683,0.0423,117700.0,117690.0,0.3946356]
[1753815602695,0.37291278,117700.0,117690.0,0.3946356]
[1753815602993,0.58232198,117700.0,117690.0,0.3946356]
[1753815604695,0.41236278,117700.0,117690.0,0.3946356]
[1753815605300,0.15437,117700.0,117690.0,0.3946356]
[1753815605500,0.41236278,117700.0,117690.0,0.3946356]
[1753815608305,0.58232248,117700.0,117690.0,0.3946356]
[1753815608601,0.58232248,117700.0,117690.0,0.3466156]
[1753815608898,0.60378271,117700.0,117690.0,0.2145256]
[1753815609202,0.60378271,117700.0,117690.0,0.2957356]
[1753815609403,0.60378271,117700.0,117690.0,0.3239056]
[1753815610095,0.60378271,117700.0,117690.0,0.3526256]
[1753815611393,0.60378271,117700.0,117690.0,0.3946356]
[1753815613102,0.69181579,117700.0,117670.0,0.1339092]
[1753815613303,0.69181579,117700.0,117680.0,0.2124779]
[1753815613304,1.0314523,117690.0,117680.0,0.2124779]
[1753815613501,1.1164448,117690.0,117680.0,0.2124779]
[1753815613702,0.3056487,117680.0,117670.0,0.3514931]
[1753815613904,0.3056487,117680.0,117670.0,0.1700031]
[1753815614202,0.3056624,117670.0,117660.0,0.4026421]
[1753815614398,1.24025518,117670.0,117660.0,0.317636]
[1753815614603,1.24025518,117670.0,117660.0,0.2462584]
[1753815614801,1.24025518,117670.0,117660.0,0.2125984]
[1753815615395,1.24025518,117670.0,117660.0,0.3246684]
[1753815616409,1.24025518,117670.0,117660.0,0.3938284]
[1753815617003,1.24325518,117670.0,117660.0,0.3938284]
[1753815617203,1.07325278,117670.0,117660.0,0.3938284]
[1753815617404,0.9852641,117670.0,117660.0,0.3938284]
[1753815617703,1.24325688,117670.0,117660.0,0.3938284]
[1753815619508,0.56665688,117670.0,117660.0,0.3938284]
[1753815619696,1.24329688,117670.0,117660.0,0.3938284]
[1753815620810,1.24529688,117670.0,117660.0,0.3938284]
[1753815621011,0.56865688,117670.0,117660.0,0.3938284]
[1753815621212,1.24565688,117670.0,117660.0,0.3938284]
[1753815622610,0.56865688,117670.0,117660.0,0.3938284]
[1753815622810,1.26472146,117670.0,117660.0,0.3938284]
[1753815623010,1.26468146,117670.0,117660.0,0.3938284]
[1753815623912,0.58772146,117670.0,117660.0,0.3938284]
[1753815624111,1.26464146,117670.0,117660.0,0.3938284]
[1753815624508,1.26464146,117670.0,117660.0,0.3517884]
[1753815624707,1.26460146,117670.0,117660.0,0.3517884]
[1753815625212,0.58772146,117670.0,117660.0,0.3517884]
[1753815625412,1.26456146,117670.0,117660.0,0.3517884]
[1753815626206,1.26456146,117670.0,117660.0,0.3938284]
[1753815627816,1.26448277,117670.0,117660.0,0.3938284]
[1753815631214,1.24549688,117670.0,117660.0,0.3938284]
[1753815631415,1.26466754,117670.0,117660.0,0.3938284]
[1753815636919,0.58782754,117670.0,117660.0,0.3938284]
[1753815637221,1.22670754,117670.0,117660.0,0.3938284]
[1753815637623,1.05670344,117670.0,117660.0,0.3938284]
[1753815637820,0.37994344,117670.0,117660.0,0.3938284]
[1753815638022,0.05113066,117670.0,117660.0,0.3938284]
[1753815638219,0.98588344,117670.0,117660.0,0.3938284]
[1753815638527,1.02844344,117670.0,117660.0,0.3938284]
[1753815639026,0.37994344,117670.0,117660.0,0.3938284]
[1753815639226,1.05670344,117670.0,117660.0,0.3938284]
[1753815641020,0.96871346,117670.0,117660.0,0.3938272]
[1753815641226,1.26443624,117670.0,117660.0,0.3022672]
[1753815641426,0.1700172,117660.0,117650.0,0.4793145]
[1753815641628,0.56351998,117660.0,117650.0,0.4793145]
[1753815642016,0.56351998,117660.0,117650.0,0.5213545]
[1753815642229,0.56351998,117660.0,117650.0,0.3938416]
[1753815642527,0.13551,117650.0,117640.0,0.4368267]
[1753815642727,0.39350278,117650.0,117640.0,0.4788667]
[1753815643224,0.13551,117650.0,117640.0,0.4788667]
[1753815643429,0.35577278,117650.0,117640.0,0.4801089]
[1753815644129,0.36411854,117650.0,117640.0,0.4801089]
[1753815644529,0.35577278,117650.0,117640.0,0.4801089]
[1753815644830,0.35577278,117650.0,117640.0,0.4803998]
[1753815645030,0.52580448,117650.0,117640.0,0.4803998]
[1753815645222,0.35577278,117650.0,117640.0,0.4803998]
[1753815645419,1.03265278,117650.0,117640.0,0.4803998]
[1753815645926,1.03281278,117650.0,117640.0,0.4806907]
[1753815647434,0.35577278,117650.0,117640.0,0.4806907]
[1753815647729,0.77482,117650.0,117640.0,0.4806907]
[1753815647928,0.02731,117660.0,117650.0,0.3886817]
[1753815648129,0.62537374,117670.0,117660.0,0.3886672]
[1753815648324,1.32392519,117670.0,117660.0,0.3886672]
[1753815648728,1.32392519,117670.0,117660.0,0.3904912]
[1753815649436,1.32692519,117670.0,117660.0,0.3904912]
[1753815649736,1.33564956,117670.0,117660.0,0.3904912]
[1753815651538,1.33564956,117670.0,117660.0,0.3886672]
[1753815651739,1.29514836,117670.0,117660.0,0.39110745]
[1753815652037,1.12513926,117670.0,117660.0,0.39110745]
[1753815652537,1.29514156,117670.0,117660.0,0.39110745]
[1753815652838,1.12513926,117670.0,117660.0,0.39165593]
[1753815653148,1.29514156,117670.0,117660.0,0.39165593]
[1753815653846,1.29498156,117670.0,117660.0,0.39165593]
[1753815654846,0.61802156,117670.0,117660.0,0.39165593]
[1753815655046,1.29486156,117670.0,117660.0,0.39165593]
[1753815655653,0.61802156,117670.0,117660.0,0.39165593]
[1753815655852,1.29486156,117670.0,117660.0,0.39165593]
[1753815656449,0.61802156,117670.0,117660.0,0.39165593]
[1753815656648,1.29486156,117670.0,117660.0,0.39165593]
[1753815657350,1.03686878,117670.0,117660.0,0.39165593]
[1753815657548,1.29486156,117670.0,117660.0,0.39165593]
[1753815659243,0.75847648,117670.0,117660.0,0.39165593]
[1753815659443,1.22998126,117670.0,117660.0,0.39165593]
[1753815659645,0.55314126,117670.0,117660.0,0.39165593]
[1753815659844,0.73116648,117670.0,117660.0,0.39165593]
[1753815660042,0.02417066,117670.0,117660.0,0.39165593]
[1753815660243,0.70117066,117670.0,117660.0,0.64964871]
[1753815660446,0.77199066,117670.0,117660.0,0.39165593]
[1753815660749,0.05148066,117670.0,117660.0,0.39165593]
[1753815660949,0.72848066,117670.0,117660.0,0.39165593]
[1753815661850,0.05148066,117670.0,117660.0,0.39165593]
[1753815662047,0.72840066,117670.0,117660.0,0.39165593]
[1753815662252,0.05148066,117670.0,117660.0,0.39165593]
[1753815662951,0.12353066,117670.0,117660.0,0.39165593]
[1753815663154,0.55152524,117670.0,117660.0,0.39165593]
[1753815663349,0.55152524,117670.0,117660.0,0.34970593]
[1753815663550,1.26470524,117670.0,117660.0,0.10466873]
[1753815663754,1.26470524,117670.0,117660.0,0.00298873]
[1753815665557,1.28612459,117670.0,117660.0,0.00298873]